[Event "Titled Tuesday Blitz January 17 Early 2023"]
[White "Kukula, Pawel"]
[Black "Kodinets, Konstantin L."]
[WhiteFideId "1115081"]
[BlackFideId "4122011"]
[WhiteElo "2135"]
[BlackElo "2409"]
[Result "1-0"]
[Round "06"]
[TimeControl "180+2"]
[Date "2023.01.17"]
[WhiteClock "0:00:07"]
[BlackClock "0:01:11"]

1. c4 {[%clk 0:02:59]}  c6 {[%clk 0:02:59]} 2. Nf3 {[%clk 0:02:54]}  d6 {[%clk 0:02:59]} 3. d4 {[%clk 0:02:52]}  Nd7 {[%clk 0:02:59]} 4. Nc3 {[%clk 0:02:49]}  Ngf6 {[%clk 0:02:59]} 5. g3 {[%clk 0:02:48]}  e5 {[%clk 0:02:58]} 6. Bg2 {[%clk 0:02:48]}  Be7 {[%clk 0:02:59]} 7. O-O {[%clk 0:02:48]}  O-O {[%clk 0:02:59]} 8. b3 {[%clk 0:02:48]}  Re8 {[%clk 0:02:59]} 9. Bb2 {[%clk 0:02:48]}  a6 {[%clk 0:02:59]} 10. Qc2 {[%clk 0:02:48]}  Bf8 {[%clk 0:02:58]} 11. dxe5 {[%clk 0:02:46]}  dxe5 {[%clk 0:02:57]} 12. Rad1 {[%clk 0:02:47]}  Qc7 {[%clk 0:02:57]} 13. Ng5 {[%clk 0:02:43]}  h6 {[%clk 0:02:46]} 14. Nge4 {[%clk 0:02:37]}  Nxe4 {[%clk 0:02:46]} 15. Nxe4 {[%clk 0:01:49]}  Nc5 {[%clk 0:02:37]} 16. a3 {[%clk 0:01:38]}  a5 {[%clk 0:02:36]} 17. Rd2 {[%clk 0:01:25]}  Bg4 {[%clk 0:02:35]} 18. Rfd1 {[%clk 0:01:20]}  Bh5 {[%clk 0:02:35]} 19. Nxc5 {[%clk 0:01:18]}  Bxc5 {[%clk 0:02:34]} 20. Be4 {[%clk 0:01:19]}  Qb6 {[%clk 0:02:24]} 21. Bh7+ {[%clk 0:00:53]}  Kh8 {[%clk 0:02:23]} 22. Qf5 {[%clk 0:00:54]}  Bxf2+ {[%clk 0:02:20]} 23. Kg2 {[%clk 0:00:53]}  Bd4 {[%clk 0:02:16]} 24. Qxh5 {[%clk 0:00:30]}  Kxh7 {[%clk 0:02:11]} 25. Qxf7 {[%clk 0:00:14]}  Qxb3 {[%clk 0:02:11]} 26. Rxd4 {[%clk 0:00:08]}  exd4 {[%clk 0:02:01]} 27. Bxd4 {[%clk 0:00:08]}  Rg8 {[%clk 0:01:59]} 28. Qf5+ {[%clk 0:00:08]}  Kh8 {[%clk 0:01:54]} 29. Qg6 {[%clk 0:00:08]}  Qe3 {[%clk 0:01:11]} 30. Bxe3 {[%clk 0:00:07]} 1-0


[Site "https://www.chess.com"]

[Event "Titled Tuesday Blitz January 17 Early 2023"]
[White "Poeta, Caio Medeiros"]
[Black "Williams, Simon K"]
[WhiteFideId "2142660"]
[BlackFideId "404454"]
[WhiteElo "2088"]
[BlackElo "2465"]
[Result "1-0"]
[Round "06"]
[TimeControl "180+2"]
[Date "2023.01.17"]
[WhiteClock "0:00:13"]
[BlackClock "0:00:04"]

1. d4 {[%clk 0:03:00]}  e6 {[%clk 0:02:57]} 2. c4 {[%clk 0:03:00]}  b6 {[%clk 0:02:57]} 3. f3 {[%clk 0:02:54]}  Bb7 {[%clk 0:02:56]} 4. e4 {[%clk 0:02:54]}  f5 {[%clk 0:02:56]} 5. exf5 {[%clk 0:02:47]}  Nh6 {[%clk 0:02:55]} 6. fxe6 {[%clk 0:02:44]}  Nf5 {[%clk 0:02:55]} 7. Bf4 {[%clk 0:02:01]}  dxe6 {[%clk 0:02:50]} 8. Ne2 {[%clk 0:01:59]}  Nc6 {[%clk 0:02:32]} 9. d5 {[%clk 0:01:59]}  exd5 {[%clk 0:02:25]} 10. cxd5 {[%clk 0:01:59]}  Nb4 {[%clk 0:02:21]} 11. Nbc3 {[%clk 0:01:59]}  Bc5 {[%clk 0:02:01]} 12. Qa4+ {[%clk 0:01:55]}  Kf7 {[%clk 0:02:00]} 13. O-O-O {[%clk 0:01:54]}  Re8 {[%clk 0:01:20]} 14. Ng3 {[%clk 0:01:51]}  Ne3 {[%clk 0:01:17]} 15. Bxe3 {[%clk 0:01:46]}  Rxe3 {[%clk 0:01:15]} 16. Nge4 {[%clk 0:01:41]}  a5 {[%clk 0:00:53]} 17. Bc4 {[%clk 0:01:31]}  Kg6 {[%clk 0:00:48]} 18. Kb1 {[%clk 0:01:10]}  Bc8 {[%clk 0:00:40]} 19. Nxc5 {[%clk 0:01:02]}  bxc5 {[%clk 0:00:39]} 20. Qb5 {[%clk 0:00:48]}  Bf5+ {[%clk 0:00:38]} 21. Ne4 {[%clk 0:00:47]}  Qe7 {[%clk 0:00:26]} 22. a3 {[%clk 0:00:34]}  Bxe4+ {[%clk 0:00:26]} 23. fxe4 {[%clk 0:00:34]}  Qxe4+ {[%clk 0:00:26]} 24. Ka1 {[%clk 0:00:34]}  Nc2+ {[%clk 0:00:17]} 25. Ka2 {[%clk 0:00:31]}  Nd4 {[%clk 0:00:11]} 26. Qxc5 {[%clk 0:00:17]}  Rb8 {[%clk 0:00:12]} 27. Qxd4 {[%clk 0:00:11]}  Qc2 {[%clk 0:00:05]} 28. Bd3+ {[%clk 0:00:11]}  Rxd3 {[%clk 0:00:05]} 29. Qxd3+ {[%clk 0:00:12]}  Qxd3 {[%clk 0:00:04]} 30. Rxd3 {[%clk 0:00:13]} 1-0


[Site "https://www.chess.com"]

[Event "Titled Tuesday Blitz January 17 Early 2023"]
[White "Womacka, Mathias"]
[Black "Sourath Biswas"]
[WhiteFideId "4611390"]
[BlackFideId "35091484"]
[WhiteElo "2396"]
[BlackElo "2281"]
[Result "1-0"]
[Round "06"]
[TimeControl "180+2"]
[Date "2023.01.17"]
[WhiteClock "0:00:57"]
[BlackClock "0:00:36"]

1. e4 {[%clk 0:03:00]}  c6 {[%clk 0:02:58]} 2. d4 {[%clk 0:03:00]}  d5 {[%clk 0:02:57]} 3. Nd2 {[%clk 0:02:59]}  dxe4 {[%clk 0:02:57]} 4. Nxe4 {[%clk 0:03:00]}  Bf5 {[%clk 0:02:56]} 5. Ng3 {[%clk 0:03:00]}  Bg6 {[%clk 0:02:53]} 6. h4 {[%clk 0:02:59]}  h6 {[%clk 0:02:53]} 7. Nf3 {[%clk 0:02:59]}  Nd7 {[%clk 0:02:53]} 8. h5 {[%clk 0:02:59]}  Bh7 {[%clk 0:02:53]} 9. Bd3 {[%clk 0:03:00]}  Bxd3 {[%clk 0:02:54]} 10. Qxd3 {[%clk 0:03:00]}  e6 {[%clk 0:02:54]} 11. Bd2 {[%clk 0:03:00]}  Ngf6 {[%clk 0:02:54]} 12. O-O-O {[%clk 0:03:01]}  Be7 {[%clk 0:02:55]} 13. Kb1 {[%clk 0:02:58]}  O-O {[%clk 0:02:54]} 14. Ne4 {[%clk 0:02:58]}  Nxe4 {[%clk 0:02:55]} 15. Qxe4 {[%clk 0:02:59]}  Nf6 {[%clk 0:02:56]} 16. Qe2 {[%clk 0:02:58]}  Qd5 {[%clk 0:02:56]} 17. Ne5 {[%clk 0:02:50]}  Qe4 {[%clk 0:02:49]} 18. Be3 {[%clk 0:02:50]}  Nd5 {[%clk 0:02:45]} 19. Rhe1 {[%clk 0:02:48]}  Rad8 {[%clk 0:02:37]} 20. f3 {[%clk 0:02:45]}  Qxe3 {[%clk 0:02:35]} 21. Qxe3 {[%clk 0:02:46]}  Nxe3 {[%clk 0:02:35]} 22. Rxe3 {[%clk 0:02:47]}  Bf6 {[%clk 0:02:26]} 23. Red3 {[%clk 0:02:35]}  c5 {[%clk 0:02:22]} 24. dxc5 {[%clk 0:02:22]}  Rxd3 {[%clk 0:02:01]} 25. Nxd3 {[%clk 0:02:23]}  Rd8 {[%clk 0:02:01]} 26. c3 {[%clk 0:02:21]}  Rd5 {[%clk 0:01:58]} 27. g4 {[%clk 0:02:20]}  Be7 {[%clk 0:01:57]} 28. b4 {[%clk 0:02:15]}  f5 {[%clk 0:01:51]} 29. Nf2 {[%clk 0:01:57]}  Rxd1+ {[%clk 0:01:37]} 30. Nxd1 {[%clk 0:01:56]}  fxg4 {[%clk 0:01:38]} 31. fxg4 {[%clk 0:01:56]}  g6 {[%clk 0:01:38]} 32. Nf2 {[%clk 0:01:33]}  Kf7 {[%clk 0:01:23]} 33. Ne4 {[%clk 0:01:28]}  gxh5 {[%clk 0:01:18]} 34. gxh5 {[%clk 0:01:29]}  e5 {[%clk 0:01:18]} 35. Kc2 {[%clk 0:01:27]}  Ke6 {[%clk 0:01:18]} 36. Kd3 {[%clk 0:01:27]}  Kf5 {[%clk 0:01:02]} 37. Nd6+ {[%clk 0:01:27]}  Bxd6 {[%clk 0:00:59]} 38. cxd6 {[%clk 0:01:27]}  Ke6 {[%clk 0:01:00]} 39. c4 {[%clk 0:01:23]}  Kxd6 {[%clk 0:01:00]} 40. Ke4 {[%clk 0:01:23]}  Ke6 {[%clk 0:00:54]} 41. c5 {[%clk 0:01:22]}  a6 {[%clk 0:00:44]} 42. a4 {[%clk 0:01:17]}  Kf6 {[%clk 0:00:43]} 43. Kd5 {[%clk 0:01:04]}  Kf5 {[%clk 0:00:42]} 44. b5 {[%clk 0:01:04]}  axb5 {[%clk 0:00:43]} 45. axb5 {[%clk 0:01:05]}  e4 {[%clk 0:00:43]} 46. c6 {[%clk 0:01:05]}  bxc6+ {[%clk 0:00:43]} 47. bxc6 {[%clk 0:01:06]}  e3 {[%clk 0:00:44]} 48. c7 {[%clk 0:01:07]}  e2 {[%clk 0:00:38]} 49. c8=Q+ {[%clk 0:01:06]}  Kg5 {[%clk 0:00:37]} 50. Qe6 {[%clk 0:01:05]}  Kxh5 {[%clk 0:00:36]} 51. Qxe2+ {[%clk 0:01:05]}  Kh4 {[%clk 0:00:37]} 52. Qh2+ {[%clk 0:01:04]}  Kg5 {[%clk 0:00:36]} 53. Ke4 {[%clk 0:01:00]}  h5 {[%clk 0:00:36]} 54. Qg3+ {[%clk 0:00:58]}  Kf6 {[%clk 0:00:36]} 55. Qh4+ {[%clk 0:00:57]} 1-0


[Site "https://www.chess.com"]

[Event "Titled Tuesday Blitz January 17 Early 2023"]
[White "Pfreundt, Jakob"]
[Black "Golding, Alex"]
[WhiteFideId "12918156"]
[BlackFideId "427241"]
[WhiteElo "2407"]
[BlackElo "2318"]
[Result "1-0"]
[Round "06"]
[TimeControl "180+2"]
[Date "2023.01.17"]
[WhiteClock "0:00:06"]
[BlackClock "0:00:06"]

1. Nf3 {[%clk 0:03:00]}  Nf6 {[%clk 0:02:56]} 2. g3 {[%clk 0:03:00]}  c6 {[%clk 0:02:46]} 3. Bg2 {[%clk 0:03:01]}  d5 {[%clk 0:02:45]} 4. O-O {[%clk 0:03:00]}  Bg4 {[%clk 0:02:43]} 5. d4 {[%clk 0:02:55]}  Bxf3 {[%clk 0:02:43]} 6. Bxf3 {[%clk 0:02:54]}  Nbd7 {[%clk 0:02:42]} 7. c4 {[%clk 0:02:42]}  e6 {[%clk 0:02:42]} 8. Nd2 {[%clk 0:02:39]}  Bb4 {[%clk 0:02:35]} 9. Qc2 {[%clk 0:02:32]}  O-O {[%clk 0:02:32]} 10. a3 {[%clk 0:02:30]}  Ba5 {[%clk 0:02:32]} 11. b4 {[%clk 0:02:24]}  Bc7 {[%clk 0:02:32]} 12. e4 {[%clk 0:02:20]}  dxe4 {[%clk 0:02:30]} 13. Nxe4 {[%clk 0:02:20]}  Nxe4 {[%clk 0:02:27]} 14. Qxe4 {[%clk 0:02:16]}  Nf6 {[%clk 0:02:26]} 15. Qh4 {[%clk 0:02:16]}  h6 {[%clk 0:02:21]} 16. Rd1 {[%clk 0:02:05]}  Qd7 {[%clk 0:02:10]} 17. Bxh6 {[%clk 0:02:02]}  Bd8 {[%clk 0:02:01]} 18. Bg5 {[%clk 0:01:59]}  Nh7 {[%clk 0:01:58]} 19. Bxd8 {[%clk 0:01:57]}  Raxd8 {[%clk 0:01:59]} 20. d5 {[%clk 0:01:46]}  exd5 {[%clk 0:01:57]} 21. cxd5 {[%clk 0:01:47]}  cxd5 {[%clk 0:01:46]} 22. Rxd5 {[%clk 0:01:48]}  Qc7 {[%clk 0:01:20]} 23. Rh5 {[%clk 0:01:46]}  Qc3 {[%clk 0:01:16]} 24. Rf1 {[%clk 0:01:29]}  Qxf3 {[%clk 0:01:08]} 25. Rxh7 {[%clk 0:01:28]}  f6 {[%clk 0:01:08]} 26. Rh8+ {[%clk 0:01:19]}  Kf7 {[%clk 0:01:08]} 27. Qc4+ {[%clk 0:01:18]}  Qd5 {[%clk 0:01:04]} 28. Rxf8+ {[%clk 0:01:04]}  Kxf8 {[%clk 0:01:04]} 29. Qxd5 {[%clk 0:00:59]}  Rxd5 {[%clk 0:01:04]} 30. Rc1 {[%clk 0:01:00]}  Rd7 {[%clk 0:00:57]} 31. h4 {[%clk 0:00:55]}  b6 {[%clk 0:00:52]} 32. Rc3 {[%clk 0:00:48]}  Kf7 {[%clk 0:00:49]} 33. Kg2 {[%clk 0:00:48]}  Kg6 {[%clk 0:00:48]} 34. g4 {[%clk 0:00:46]}  Rd4 {[%clk 0:00:47]} 35. Kg3 {[%clk 0:00:46]}  Rd7 {[%clk 0:00:45]} 36. h5+ {[%clk 0:00:44]}  Kh6 {[%clk 0:00:44]} 37. Kh4 {[%clk 0:00:38]}  Rd2 {[%clk 0:00:22]} 38. f4 {[%clk 0:00:33]}  Rh2+ {[%clk 0:00:22]} 39. Kg3 {[%clk 0:00:33]}  Ra2 {[%clk 0:00:23]} 40. Kf3 {[%clk 0:00:19]}  a5 {[%clk 0:00:20]} 41. bxa5 {[%clk 0:00:18]}  bxa5 {[%clk 0:00:21]} 42. Ke4 {[%clk 0:00:19]}  Rg2 {[%clk 0:00:18]} 43. Kf5 {[%clk 0:00:19]}  Ra2 {[%clk 0:00:17]} 44. g5+ {[%clk 0:00:16]}  fxg5 {[%clk 0:00:17]} 45. fxg5+ {[%clk 0:00:15]}  Kh7 {[%clk 0:00:17]} 46. Ke6 {[%clk 0:00:11]}  Rh2 {[%clk 0:00:16]} 47. g6+ {[%clk 0:00:07]}  Kh6 {[%clk 0:00:15]} 48. Rc5 {[%clk 0:00:07]}  a4 {[%clk 0:00:14]} 49. Kf7 {[%clk 0:00:05]}  Rf2+ {[%clk 0:00:13]} 50. Kg8 {[%clk 0:00:06]}  Rf3 {[%clk 0:00:13]} 51. Rc7 {[%clk 0:00:04]}  Rxa3 {[%clk 0:00:11]} 52. Rxg7 {[%clk 0:00:04]}  Kxh5 {[%clk 0:00:11]} 53. Kh7 {[%clk 0:00:04]}  Kg5 {[%clk 0:00:09]} 54. Ra7 {[%clk 0:00:03]}  Kf6 {[%clk 0:00:08]} 55. Ra6+ {[%clk 0:00:02]}  Ke5 {[%clk 0:00:08]} 56. g7 {[%clk 0:00:03]}  Rh3+ {[%clk 0:00:07]} 57. Rh6 {[%clk 0:00:04]}  Rg3 {[%clk 0:00:05]} 58. g8=Q {[%clk 0:00:03]}  Rxg8 {[%clk 0:00:06]} 59. Kxg8 {[%clk 0:00:03]}  Kd4 {[%clk 0:00:06]} 60. Ra6 {[%clk 0:00:04]}  Kc5 {[%clk 0:00:05]} 61. Rxa4 {[%clk 0:00:05]}  Kb5 {[%clk 0:00:06]} 62. Rg4 {[%clk 0:00:05]}  Kc5 {[%clk 0:00:06]} 63. Kf7 {[%clk 0:00:06]} 1-0


[Site "https://www.chess.com"]

[Event "Titled Tuesday Blitz January 17 Early 2023"]
[White "Sreyas Payyappat"]
[Black "Fernandez Garcia, Gumersindo"]
[WhiteFideId "46674969"]
[BlackFideId "24516740"]
[WhiteElo "2076"]
[BlackElo "2160"]
[Result "1-0"]
[Round "06"]
[TimeControl "180+2"]
[Date "2023.01.17"]
[WhiteClock "0:00:28"]
[BlackClock "0:00:03"]

1. e4 {[%clk 0:03:00]}  d6 {[%clk 0:02:56]} 2. d4 {[%clk 0:03:00]}  Nf6 {[%clk 0:02:57]} 3. Nc3 {[%clk 0:02:59]}  e5 {[%clk 0:02:57]} 4. dxe5 {[%clk 0:02:59]}  dxe5 {[%clk 0:02:57]} 5. Qxd8+ {[%clk 0:03:00]}  Kxd8 {[%clk 0:02:58]} 6. Bg5 {[%clk 0:03:01]}  Ke8 {[%clk 0:02:58]} 7. Bxf6 {[%clk 0:02:59]}  gxf6 {[%clk 0:02:52]} 8. Nd5 {[%clk 0:03:00]}  Bd6 {[%clk 0:02:47]} 9. Nxf6+ {[%clk 0:03:00]}  Kf8 {[%clk 0:02:40]} 10. O-O-O {[%clk 0:02:58]}  Be6 {[%clk 0:02:37]} 11. Nf3 {[%clk 0:02:51]}  Nc6 {[%clk 0:02:31]} 12. Ng5 {[%clk 0:02:47]}  Ke7 {[%clk 0:02:25]} 13. Nd5+ {[%clk 0:02:47]}  Bxd5 {[%clk 0:02:25]} 14. exd5 {[%clk 0:02:48]}  Nd4 {[%clk 0:02:19]} 15. c3 {[%clk 0:02:45]}  Nf5 {[%clk 0:02:16]} 16. Bd3 {[%clk 0:02:44]}  Ng7 {[%clk 0:02:13]} 17. Rhe1 {[%clk 0:02:41]}  h6 {[%clk 0:02:06]} 18. Nf3 {[%clk 0:02:39]}  f6 {[%clk 0:01:58]} 19. Nh4 {[%clk 0:02:38]}  Kd7 {[%clk 0:01:51]} 20. Nf5 {[%clk 0:02:34]}  Nxf5 {[%clk 0:01:49]} 21. Bxf5+ {[%clk 0:02:34]}  Ke7 {[%clk 0:01:50]} 22. Be6 {[%clk 0:02:33]}  Rh7 {[%clk 0:01:48]} 23. Rd3 {[%clk 0:02:30]}  Rg7 {[%clk 0:01:48]} 24. Rg3 {[%clk 0:02:30]}  Rg5 {[%clk 0:01:47]} 25. Ree3 {[%clk 0:02:28]}  c6 {[%clk 0:01:44]} 26. h4 {[%clk 0:02:27]}  Rxg3 {[%clk 0:01:38]} 27. Rxg3 {[%clk 0:02:28]}  cxd5 {[%clk 0:01:38]} 28. Bxd5 {[%clk 0:02:29]}  Bc5 {[%clk 0:01:36]} 29. Rg7+ {[%clk 0:02:23]}  Kd6 {[%clk 0:01:36]} 30. c4 {[%clk 0:02:23]}  Bxf2 {[%clk 0:01:30]} 31. Rxb7 {[%clk 0:02:23]}  Rf8 {[%clk 0:01:23]} 32. h5 {[%clk 0:02:21]}  f5 {[%clk 0:01:20]} 33. Rh7 {[%clk 0:02:10]}  Rf6 {[%clk 0:01:11]} 34. Kd2 {[%clk 0:02:08]}  e4 {[%clk 0:01:10]} 35. Ke2 {[%clk 0:02:08]}  Bd4 {[%clk 0:01:09]} 36. b4 {[%clk 0:02:08]}  Ke5 {[%clk 0:01:09]} 37. g3 {[%clk 0:02:04]}  Bc3 {[%clk 0:01:09]} 38. b5 {[%clk 0:01:58]}  a6 {[%clk 0:01:06]} 39. a4 {[%clk 0:01:55]}  Kd4 {[%clk 0:00:51]} 40. Rg7 {[%clk 0:01:28]}  Bb4 {[%clk 0:00:48]} 41. Rg6 {[%clk 0:01:26]}  Rf8 {[%clk 0:00:37]} 42. bxa6 {[%clk 0:01:19]}  Bc5 {[%clk 0:00:34]} 43. Rg7 {[%clk 0:01:18]}  Rb8 {[%clk 0:00:23]} 44. a7 {[%clk 0:01:05]}  Rb2+ {[%clk 0:00:22]} 45. Kd1 {[%clk 0:00:55]}  Kd3 {[%clk 0:00:13]} 46. Bxe4+ {[%clk 0:00:50]}  fxe4 {[%clk 0:00:09]} 47. Rd7+ {[%clk 0:00:48]}  Kc3 {[%clk 0:00:05]} 48. a8=Q {[%clk 0:00:46]}  e3 {[%clk 0:00:02]} 49. Qa5+ {[%clk 0:00:35]}  Bb4 {[%clk 0:00:02]} 50. Qe5+ {[%clk 0:00:31]}  Kb3 {[%clk 0:00:02]} 51. Rd3+ {[%clk 0:00:29]}  Ka2 {[%clk 0:00:02]} 52. Qxb2+ {[%clk 0:00:28]}  Kxb2 {[%clk 0:00:03]} 53. Rxe3 {[%clk 0:00:28]} 1-0


[Site "https://www.chess.com"]

[Event "Titled Tuesday Blitz January 17 Early 2023"]
[White "Korchmar, Vasiliy"]
[Black "Estrada Nieto, Julian"]
[WhiteFideId "24131750"]
[BlackFideId "5101018"]
[WhiteElo "2438"]
[BlackElo "2215"]
[Result "1-0"]
[Round "06"]
[TimeControl "180+2"]
[Date "2023.01.17"]
[WhiteClock "0:00:12"]
[BlackClock "0:00:01"]

1. e4 {[%clk 0:02:56]}  e5 {[%clk 0:03:00]} 2. Nf3 {[%clk 0:02:56]}  Nc6 {[%clk 0:03:00]} 3. Bc4 {[%clk 0:02:56]}  Bc5 {[%clk 0:03:00]} 4. c3 {[%clk 0:02:56]}  Nf6 {[%clk 0:02:59]} 5. d3 {[%clk 0:02:56]}  d6 {[%clk 0:02:59]} 6. Bg5 {[%clk 0:02:57]}  h6 {[%clk 0:02:58]} 7. Bh4 {[%clk 0:02:57]}  a6 {[%clk 0:02:56]} 8. Nbd2 {[%clk 0:02:55]}  g5 {[%clk 0:02:53]} 9. Bg3 {[%clk 0:02:55]}  Bg4 {[%clk 0:02:53]} 10. O-O {[%clk 0:02:53]}  Nh5 {[%clk 0:02:48]} 11. Qb3 {[%clk 0:02:48]}  O-O {[%clk 0:02:28]} 12. Qc2 {[%clk 0:02:41]}  Ba7 {[%clk 0:02:11]} 13. a4 {[%clk 0:02:37]}  Ne7 {[%clk 0:01:58]} 14. Kh1 {[%clk 0:02:36]}  Ng6 {[%clk 0:01:57]} 15. d4 {[%clk 0:02:33]}  Qe7 {[%clk 0:01:53]} 16. h3 {[%clk 0:02:28]}  Bd7 {[%clk 0:01:52]} 17. Rfe1 {[%clk 0:02:09]}  Kh7 {[%clk 0:01:50]} 18. dxe5 {[%clk 0:02:06]}  dxe5 {[%clk 0:01:49]} 19. Nf1 {[%clk 0:02:04]}  Nhf4 {[%clk 0:01:46]} 20. Ne3 {[%clk 0:02:02]}  Bxe3 {[%clk 0:01:36]} 21. fxe3 {[%clk 0:02:03]}  Nh5 {[%clk 0:01:36]} 22. Bh2 {[%clk 0:01:59]}  f6 {[%clk 0:01:36]} 23. Qe2 {[%clk 0:01:46]}  Ng7 {[%clk 0:01:33]} 24. a5 {[%clk 0:01:46]}  Be6 {[%clk 0:01:31]} 25. Bg3 {[%clk 0:01:31]}  Rfd8 {[%clk 0:01:31]} 26. Rf1 {[%clk 0:01:28]}  Qc5 {[%clk 0:01:18]} 27. Bxe6 {[%clk 0:01:26]}  Nxe6 {[%clk 0:01:18]} 28. Nh2 {[%clk 0:01:22]}  Rf8 {[%clk 0:01:10]} 29. Rf2 {[%clk 0:01:04]}  Qe7 {[%clk 0:01:07]} 30. Raf1 {[%clk 0:01:04]}  Nc5 {[%clk 0:01:00]} 31. Qc4 {[%clk 0:00:59]}  Rad8 {[%clk 0:00:56]} 32. Ng4 {[%clk 0:00:58]}  Nd7 {[%clk 0:00:35]} 33. Qxc7 {[%clk 0:00:50]}  Rf7 {[%clk 0:00:27]} 34. Nxf6+ {[%clk 0:00:34]}  Nxf6 {[%clk 0:00:19]} 35. Qxe7 {[%clk 0:00:34]}  Rxe7 {[%clk 0:00:18]} 36. Rxf6 {[%clk 0:00:34]}  Kg7 {[%clk 0:00:16]} 37. Rb6 {[%clk 0:00:32]}  Rd3 {[%clk 0:00:16]} 38. Rff6 {[%clk 0:00:31]}  Nf8 {[%clk 0:00:15]} 39. Rf5 {[%clk 0:00:23]}  Rxe3 {[%clk 0:00:12]} 40. Rxe5 {[%clk 0:00:19]}  Rf7 {[%clk 0:00:08]} 41. Kh2 {[%clk 0:00:16]}  Ng6 {[%clk 0:00:05]} 42. Rf5 {[%clk 0:00:15]}  h5 {[%clk 0:00:04]} 43. Rxf7+ {[%clk 0:00:14]}  Kxf7 {[%clk 0:00:04]} 44. Rxb7+ {[%clk 0:00:15]}  Kf6 {[%clk 0:00:04]} 45. Rb6+ {[%clk 0:00:16]}  Kf7 {[%clk 0:00:04]} 46. Rxa6 {[%clk 0:00:12]}  h4 {[%clk 0:00:04]} 47. Bd6 {[%clk 0:00:12]}  Rxe4 {[%clk 0:00:03]} 48. Rb6 {[%clk 0:00:13]}  Re2 {[%clk 0:00:03]} 49. a6 {[%clk 0:00:13]}  Re1 {[%clk 0:00:03]} 50. a7 {[%clk 0:00:12]}  Ra1 {[%clk 0:00:03]} 51. Rb7+ {[%clk 0:00:11]}  Ke6 {[%clk 0:00:03]} 52. Bb8 {[%clk 0:00:11]}  Kf5 {[%clk 0:00:03]} 53. Rb5+ {[%clk 0:00:10]}  Ke4 {[%clk 0:00:02]} 54. Rxg5 {[%clk 0:00:10]}  Nf4 {[%clk 0:00:02]} 55. Rg4 {[%clk 0:00:10]}  Kd3 {[%clk 0:00:02]} 56. Rxf4 {[%clk 0:00:10]}  Ra2 {[%clk 0:00:02]} 57. Rxh4 {[%clk 0:00:10]}  Kc2 {[%clk 0:00:01]} 58. Rg4 {[%clk 0:00:11]}  Kb3 {[%clk 0:00:01]} 59. h4 {[%clk 0:00:11]}  Ra6 {[%clk 0:00:01]} 60. h5 {[%clk 0:00:11]}  Kc2 {[%clk 0:00:01]} 61. Kh3 {[%clk 0:00:12]} 1-0


[Site "https://www.chess.com"]

[Event "Titled Tuesday Blitz January 17 Early 2023"]
[White "Djokovic, Nebojsa"]
[Black "Valle Maytin, Luis Enrique"]
[WhiteFideId "938300"]
[BlackFideId "3503666"]
[WhiteElo "2119"]
[BlackElo "2241"]
[Result "1-0"]
[Round "06"]
[TimeControl "180+2"]
[Date "2023.01.17"]
[WhiteClock "0:01:23"]
[BlackClock "0:00:44"]

1. c4 {[%clk 0:03:00]}  c5 {[%clk 0:02:59]} 2. Nf3 {[%clk 0:03:01]}  Nc6 {[%clk 0:02:57]} 3. d4 {[%clk 0:03:01]}  cxd4 {[%clk 0:02:54]} 4. Nxd4 {[%clk 0:03:02]}  Nf6 {[%clk 0:02:53]} 5. Nc3 {[%clk 0:03:02]}  e6 {[%clk 0:02:54]} 6. g3 {[%clk 0:03:02]}  d5 {[%clk 0:02:52]} 7. cxd5 {[%clk 0:02:52]}  Nxd5 {[%clk 0:02:46]} 8. Nxc6 {[%clk 0:02:52]}  bxc6 {[%clk 0:02:46]} 9. Bd2 {[%clk 0:02:52]}  Be7 {[%clk 0:02:45]} 10. Bg2 {[%clk 0:02:52]}  O-O {[%clk 0:02:45]} 11. O-O {[%clk 0:02:52]}  Ba6 {[%clk 0:02:44]} 12. Bf3 {[%clk 0:02:35]}  Qb6 {[%clk 0:02:36]} 13. b3 {[%clk 0:02:20]}  Rad8 {[%clk 0:02:35]} 14. Qe1 {[%clk 0:02:14]}  Bf6 {[%clk 0:02:32]} 15. Rc1 {[%clk 0:02:13]}  Bb5 {[%clk 0:02:16]} 16. Ne4 {[%clk 0:02:07]}  Be7 {[%clk 0:02:12]} 17. Ba5 {[%clk 0:02:06]}  Qd4 {[%clk 0:01:53]} 18. Bxd8 {[%clk 0:01:48]}  Rxd8 {[%clk 0:01:54]} 19. a4 {[%clk 0:01:49]}  Ba6 {[%clk 0:01:42]} 20. Qa5 {[%clk 0:01:49]}  Bb7 {[%clk 0:01:21]} 21. Nc5 {[%clk 0:01:46]}  Bxc5 {[%clk 0:01:12]} 22. Rxc5 {[%clk 0:01:40]}  Ra8 {[%clk 0:01:06]} 23. e3 {[%clk 0:01:33]}  Qf6 {[%clk 0:01:02]} 24. Bxd5 {[%clk 0:01:31]}  exd5 {[%clk 0:01:03]} 25. Qc7 {[%clk 0:01:26]}  Qd8 {[%clk 0:00:43]} 26. Qxb7 {[%clk 0:01:26]}  Rb8 {[%clk 0:00:43]} 27. Qxc6 {[%clk 0:01:25]}  h6 {[%clk 0:00:43]} 28. Qxd5 {[%clk 0:01:24]}  Qf8 {[%clk 0:00:44]} 29. Rfc1 {[%clk 0:01:23]} 1-0


[Site "https://www.chess.com"]